bitfinex-derivatives/quotes_ETHF0:USTF0_20250816
["timestamp","ask_amount","ask_price","bid_price","bid_amount"]
[1755342012943,1.8187,4407.5,4407.4,2.1466]
[1755342013345,0.9466,4407.7,4407.4,0.8698]
[1755342013541,1.5975,4407.7,4407.6,2.1466]
[1755342013745,1.8187,4407.7,4407.6,2.1466]
[1755342015540,3.2078,4407.9,4407.6,2.1466]
[1755342015841,4.0799,4407.9,4407.8,1.8394]
[1755342016038,5.0265,4407.9,4407.8,2.1466]
[1755342016236,4.8215,4407.9,4407.8,0.6516]
[1755342016438,0.4328,4408.2,4407.8,2.1466]
[1755342016642,0.8721,4408.1,4408.0,2.1466]
[1755342016839,1.3859,4408.1,4408.0,2.1466]
[1755342017236,1.8187,4408.1,4408.0,2.1466]
[1755342020041,2.1373,4408.1,4408.0,2.1466]
[1755342021047,0.8505,4407.3,4407.2,3.4277]
[1755342021348,2.1581,4407.3,4407.2,3.2078]
[1755342021647,0.8505,4406.8,4406.7,0.8768]
[1755342021847,2.27360138,4406.8,4406.7,22.5782]
[1755342022249,1.95500138,4406.8,4406.7,22.8571]
[1755342022548,0.11550138,4406.8,4406.7,22.8571]
[1755342022743,0.39030138,4406.8,4406.7,21.6328]
[1755342022949,1.95500138,4406.8,4406.7,21.6328]
[1755342023449,1.95500138,4406.8,4406.7,22.8571]
[1755342024846,1.73590138,4406.8,4406.7,22.8571]
[1755342026251,0.74690138,4406.8,4406.7,22.8571]
[1755342026451,0.11550138,4406.8,4406.7,22.8571]
[1755342026747,0.11550138,4407.0,4406.7,21.6328]
[1755342027053,0.6314,4406.8,4406.7,21.6328]
[1755342027349,1.73590138,4406.8,4406.7,22.8571]
[1755342028045,0.74690138,4406.8,4406.7,22.8571]
[1755342028247,0.39030138,4406.8,4406.7,22.8571]
[1755342028449,0.11550138,4406.8,4406.7,22.8571]
[1755342028643,1.6204,4407.0,4406.9,0.5086]
[1755342028849,1.19641238,4407.0,4406.9,1.3554]
[1755342029152,1.96411238,4407.0,4406.9,1.3554]
[1755342029454,1.96411238,4407.0,4406.9,2.0711]
[1755342033655,1.74501238,4407.0,4406.9,2.0711]
[1755342034651,1.96411238,4407.0,4406.9,2.0711]
[1755342037161,1.96420266,4407.0,4406.9,2.0711]
[1755342040162,1.96419838,4407.0,4406.9,2.0711]
[1755342041663,2.28279838,4407.0,4406.9,2.0711]
[1755342042858,2.28279838,4407.0,4406.8,3.2078]
[1755342043060,0.12469838,4406.9,4406.2,3.2078]
[1755342043264,1.6095,4406.3,4406.2,23.9468]
[1755342043561,2.28279838,4406.3,4406.2,23.9468]
[1755342044260,2.28279838,4406.3,4406.2,24.2557]
[1755342044660,2.28279838,4406.3,4406.2,24.4756]
[1755342044868,1.96419838,4406.3,4406.2,26.0179]
[1755342045266,2.28279838,4406.3,4406.2,26.0179]
[1755342049967,1.96419838,4406.3,4406.2,26.0179]
[1755342053373,1.96423569,4406.3,4406.2,26.0179]
[1755342054362,0.12473569,4406.3,4406.2,26.0179]
[1755342054569,1.90063569,4406.3,4406.2,26.0179]
[1755342055473,2.21763569,4406.3,4406.2,24.2615]
[1755342056966,2.21763569,4406.3,4406.2,24.4689]
[1755342057566,0.12473569,4406.3,4406.2,25.0907]
[1755342057766,1.90063569,4406.3,4406.2,26.0171]
[1755342058669,1.90061517,4406.3,4406.2,26.0171]
[1755342060372,2.21761517,4406.3,4406.2,24.824]
[1755342060574,2.43686169,4406.3,4406.2,24.824]
[1755342060970,2.43686169,4406.3,4406.2,3.2078]
[1755342061472,2.0929,4406.2,4406.1,20.741]
[1755342061774,2.43686169,4406.2,4406.1,20.741]
[1755342062468,2.43686169,4406.2,4406.1,21.0537]
[1755342063475,2.43686169,4406.2,4406.1,0.3127]
[1755342065176,2.43684961,4406.2,4406.1,0.3127]
[1755342065380,1.17294961,4406.2,4405.9,20.741]
[1755342065677,1.17294961,4406.1,4405.9,21.0537]
[1755342065873,3.2078,4406.3,4405.9,21.0537]
[1755342065874,2.43684961,4406.0,4405.9,21.0537]
[1755342066075,2.43684961,4406.0,4405.9,21.2611]
[1755342066578,2.43684961,4406.0,4405.9,21.6624]
[1755342066776,2.43684961,4406.0,4405.9,22.1875]
[1755342066976,2.43684961,4406.0,4405.9,21.2611]
[1755342067177,2.43684961,4406.0,4405.9,22.1875]
[1755342067574,2.43684961,4406.0,4405.9,2.0683]
[1755342068077,2.43683399,4406.0,4405.9,2.0683]
[1755342070881,2.43683399,4406.0,4405.9,1.5432]
[1755342071082,2.43683399,4406.0,4405.9,0.5201]
[1755342072478,0.6132,4405.2,4405.1,0.3127]
[1755342072680,2.43694844,4405.2,4405.1,22.8093]
[1755342073377,2.11994844,4405.2,4405.1,22.8093]
[1755342075983,2.43694844,4405.2,4405.1,22.8093]
[1755342078785,2.11994844,4405.2,4405.1,22.8093]
[1755342080383,0.34404844,4405.2,4405.1,22.8093]
[1755342080782,1.86144844,4405.2,4405.1,22.8093]
[1755342082181,0.34404844,4405.2,4405.1,22.8093]
[1755342082487,0.21934551,4405.2,4405.1,22.8093]
[1755342082679,3.2078,4405.8,4405.7,1.1034]
[1755342082883,3.2078,4405.8,4405.7,22.7272]
[1755342083383,0.4785,4406.1,4406.0,1.9852]
[1755342083588,4.7491,4406.8,4406.7,1.9852]
[1755342083788,5.8818454,4406.8,4406.7,1.9852]
[1755342084585,3.8364454,4406.8,4406.7,1.9852]
[1755342084786,3.2078,4406.8,4406.7,1.9852]
[1755342087289,4.8365,4407.5,4407.4,0.7925]
[1755342087489,5.2532,4407.5,4407.4,1.984]
[1755342088590,5.2532,4407.5,4407.4,1.7217]
[1755342089594,5.2532,4407.5,4407.4,0.2027]
[1755342089894,3.2078,4407.5,4407.2,21.9315]
[1755342090190,2.0454,4407.3,4407.2,22.1342]
[1755342090396,2.0454,4407.3,4407.2,22.4617]
[1755342091493,2.0454,4407.3,4407.2,22.724]
[1755342094693,2.38794241,4407.3,4407.2,22.724]
[1755342097797,2.1645958,4407.3,4407.2,22.724]
[1755342099492,0.1191958,4407.3,4407.2,25.9318]
[1755342100097,5.2532,4408.0,4407.9,0.7925]
[1755342100395,5.2532,4408.0,4407.9,1.984]
[1755342100396,5.59544393,4408.0,4407.9,1.984]
[1755342101002,5.59544393,4408.0,4407.9,1.7217]
[1755342103404,5.59544393,4408.0,4407.9,1.984]
[1755342107009,6.22003167,4408.0,4407.9,1.984]
[1755342108598,4.17463167,4408.0,4407.9,1.984]
[1755342108805,0.34224393,4408.0,4407.9,1.984]
[1755342109006,0.11908869,4408.0,4407.9,1.984]
[1755342114108,0.11908869,4408.0,4407.9,5.1918]
[1755342117510,1.198,4408.6,4407.9,5.1918]
[1755342117713,0.119187,4408.5,4408.4,3.9909]
[1755342117901,1.782487,4408.5,4408.4,24.7129]
[1755342118106,2.131887,4408.5,4408.4,24.7129]
[1755342118308,2.131887,4408.5,4408.4,25.8996]
[1755342119000,0.119187,4408.5,4408.4,25.8996]
[1755342119202,1.5474,4409.3,4409.2,0.3252]
[1755342119414,2.13174455,4409.3,4409.2,24.9993]
[1755342119710,2.13174455,4409.3,4409.2,25.8976]
[1755342120014,3.2078,4410.2,4409.4,0.7831]
[1755342120015,1.1515,4409.5,4409.4,0.7831]
[1755342120311,2.13173612,4409.5,4409.4,1.9698]
[1755342120511,0.8147,4409.3,4409.2,3.2078]
[1755342120712,2.13173612,4409.3,4409.2,23.9268]
[1755342121311,2.0127,4409.3,4409.2,23.9268]
[1755342121517,3.2078,4410.7,4409.2,26.9268]
[1755342121810,2.0127,4409.8,4409.7,5.1776]
[1755342122006,2.0127,4409.8,4409.7,25.8966]
[1755342122409,0.2549,4409.8,4409.7,25.8966]
[1755342122717,1.198,4410.1,4409.7,24.7099]
[1755342123012,0.2104,4410.1,4410.0,1.9698]
[1755342123204,0.2104,4410.1,4410.0,22.6868]
[1755342123408,1.3731,4410.1,4410.0,22.6868]
[1755342123609,2.0127,4410.1,4410.0,22.6868]
[1755342123808,3.39220301,4411.3,4410.0,22.6868]
[1755342123809,1.198,4411.1,4410.1,0.6649]
[1755342124003,2.0127,4410.5,4410.4,3.7286]
[1755342124205,2.0127,4410.5,4410.4,23.9238]
[1755342124613,2.0127,4410.5,4410.4,24.1194]
[1755342125002,2.0127,4410.5,4410.4,3.4034]
[1755342125201,2.0127,4410.5,4410.4,23.9208]
[1755342125813,2.0127,4410.5,4410.4,24.1164]
[1755342126007,2.0127,4410.5,4410.4,25.3031]
[1755342126912,2.0127,4410.5,4410.4,25.8906]
[1755342127608,0.802,4411.0,4410.5,1.1867]
[1755342127815,2.0127,4411.1,4411.0,1.7075]
[1755342128011,2.0127,4411.1,4411.0,22.4185]
[1755342128210,2.0127,4411.1,4411.0,22.6808]
[1755342134619,2.0127,4411.1,4411.0,20.711]
[1755342135014,2.0127,4411.1,4411.0,22.0933]
[1755342135323,2.0127,4411.1,4411.0,22.4185]
[1755342137018,2.0127,4411.1,4411.0,21.2248]
[1755342137414,2.0127,4411.1,4411.0,21.5132]
[1755342137622,2.34848254,4411.1,4411.0,22.4115]
[1755342138125,2.34848254,4411.1,4411.0,22.6738]
[1755342138825,1.15048254,4411.1,4411.0,22.6738]
[1755342139124,0.11840002,4411.1,4411.0,22.6738]
[1755342139419,0.1,4411.2,4411.1,1.1384]
[1755342139619,1.1908,4412.6,4411.1,36.4507]
[1755342139925,1.9843,4412.4,4412.3,1.6743]
[1755342140224,2.32022083,4412.4,4412.3,22.6411]
[1755342140421,1.12942083,4412.4,4412.0,1.1384]
[1755342140622,0.7935,4412.2,4412.1,21.2389]
[1755342140820,2.32022083,4412.2,4412.1,22.3773]
[1755342141325,2.32013963,4412.2,4412.1,22.6411]
[1755342141619,0.33583963,4412.2,4412.1,1.9381]
[1755342141815,2.32013963,4412.2,4412.1,20.9074]
[1755342142021,2.32013963,4412.2,4412.1,21.2092]
[1755342142213,2.32015887,4412.2,4412.1,21.2092]
[1755342142418,2.32015887,4412.2,4412.1,22.6411]
[1755342142818,2.32015887,4412.2,4412.1,21.2389]
[1755342143016,2.32015887,4412.2,4412.1,0.2044]
[1755342143216,1.2959,4411.2,4411.1,3.2078]
[1755342143525,1.2959,4411.2,4411.1,23.9078]
[1755342143526,2.31949448,4411.2,4411.1,23.9078]
[1755342143917,2.31949448,4411.2,4411.1,3.2078]
[1755342144125,2.31949448,4411.2,4410.5,0.8366]
[1755342144420,1.9843,4410.7,4410.6,21.2359]
[1755342144627,1.1908,4411.8,4410.6,21.9743]
[1755342144923,0.2016,4411.1,4411.0,0.5359]
[1755342145227,0.11775857,4411.1,4411.0,21.4997]
[1755342145433,0.8123,4411.9,4411.0,21.4997]
[1755342145633,2.94319833,4411.8,4411.7,1.9381]
[1755342145937,2.94319833,4411.8,4411.7,21.4997]
[1755342146135,2.94319833,4411.8,4411.7,20.7]
[1755342147531,0.7935,4411.5,4410.9,3.2078]
[1755342147727,1.9843,4411.1,4411.0,1.3428]
[1755342147926,2.7256445,4411.1,4411.0,20.7]
[1755342148132,1.1908,4411.0,4410.4,0.6638]
[1755342148327,0.95965892,4411.1,4410.4,0.6638]
[1755342148328,1.9843,4410.5,4410.4,1.9381]
[1755342148726,1.9843,4410.5,4410.4,22.6381]
[1755342148930,1.6744,4410.5,4410.4,1.9381]
[1755342149134,1.6744,4410.5,4410.4,22.6381]
[1755342149337,1.9843,4410.5,4410.4,22.6381]
[1755342149826,1.9843,4410.5,4410.4,1.9381]
[1755342150031,1.9843,4410.5,4410.4,22.6381]
[1755342151032,2.60960409,4410.5,4410.4,22.6381]
[1755342151233,2.94644666,4410.5,4410.4,22.6381]
[1755342151635,2.94644666,4410.5,4410.4,1.9381]
[1755342151938,2.94644666,4410.5,4410.4,22.3733]
[1755342151939,2.44404666,4410.5,4410.4,22.3733]
[1755342152138,2.44404666,4410.5,4410.4,20.699]
[1755342152630,2.94644666,4410.5,4410.4,20.699]
[1755342154439,2.94644666,4410.5,4410.4,20.9034]
[1755342154835,2.94644666,4410.5,4410.4,20.699]
[1755342155234,1.9843,4410.4,4410.3,3.2078]
[1755342155433,2.94644666,4410.4,4410.3,24.1122]
[1755342155634,2.94644666,4410.4,4410.3,24.9183]
[1755342155938,2.94644666,4410.4,4410.3,25.5821]
[1755342156133,2.94644666,4410.4,4410.3,25.8459]
[1755342156330,0.96214666,4410.4,4410.3,25.8459]
[1755342156536,0.74356355,4410.4,4410.3,25.8459]
[1755342156739,1.1908,4411.0,4410.3,24.7075]
[1755342156938,1.1908,4411.0,4410.8,1.9381]
[1755342156939,0.96242969,4410.9,4410.8,1.9381]
[1755342157235,2.94673351,4410.9,4410.8,22.6381]
[1755342157735,2.94673351,4410.9,4410.8,25.8459]
[1755342158345,2.32125307,4410.9,4410.8,25.8459]
[1755342158836,1.13044603,4410.9,4410.8,25.8459]
[1755342159042,0.81094603,4410.9,4410.8,25.8459]
[1755342159236,0.39069404,4410.9,4410.8,25.8459]
[1755342159837,0.11829404,4410.9,4410.8,25.8459]
[1755342160339,2.10259404,4410.9,4410.8,25.8459]
[1755342161639,0.11829404,4410.9,4410.8,25.8459]
[1755342163144,3.2078,4412.0,4411.9,0.8377]
[1755342163145,5.1921,4412.0,4411.9,0.8377]
[1755342163338,6.15572822,4412.0,4411.9,21.5377]
[1755342163537,6.15572822,4412.0,4411.9,21.2359]
[1755342163841,6.15572822,4412.0,4411.9,20.9044]
[1755342167243,5.53031109,4412.0,4411.9,20.9044]
[1755342168736,5.53031109,4412.0,4411.9,21.5228]
[1755342168938,5.53031109,4412.0,4411.9,22.3435]
[1755342169343,5.53031109,4412.0,4411.9,22.6095]
[1755342170044,3.54601109,4412.0,4411.9,22.6095]
[1755342170449,0.11827028,4412.0,4411.9,22.6095]
[1755342171748,1.257,4413.1,4413.0,0.5306]
[1755342171955,1.47687497,4413.1,4413.0,21.2286]
[1755342172350,2.15437497,4413.1,4413.0,21.2286]
[1755342173160,2.15437497,4413.1,4413.0,20.8995]
[1755342174864,1.9345,4412.0,4411.9,3.7384]
[1755342175058,1.9345,4412.0,4411.9,24.4344]
[1755342175260,1.9345,4412.0,4411.9,22.6002]
[1755342177161,0.4895,4412.0,4411.9,21.7795]
[1755342177355,1.9345,4412.6,4412.5,0.2015]
[1755342177560,2.15415774,4412.6,4412.5,0.2015]
[1755342177761,2.15415774,4412.6,4412.4,20.709]
[1755342178062,2.15415774,4412.5,4412.4,20.709]
[1755342178259,2.15415774,4412.5,4412.4,22.1409]
[1755342178464,2.15415774,4412.5,4412.4,22.6132]
[1755342178656,1.9345,4412.5,4412.4,22.6132]
[1755342178955,2.15414675,4412.5,4412.4,22.6132]
[1755342180361,1.1734,4412.4,4411.8,4.0285]
[1755342180564,1.9345,4411.9,4411.8,4.846]
[1755342180861,1.1734,4412.6,4412.0,0.6353]
[1755342181058,1.9345,4412.6,4412.5,0.2015]
[1755342181261,2.15410308,4412.6,4412.5,1.6382]
[1755342181464,1.9345,4412.5,4412.4,20.712]
[1755342181664,2.15410308,4412.5,4412.4,20.712]
[1755342183758,2.26998562,4412.5,4412.4,20.712]
[1755342185162,0.5117,4411.9,4411.8,3.7384]
[1755342185362,2.26998562,4411.9,4411.8,25.8116]
[1755342187676,2.27030013,4411.9,4411.3,3.2078]
[1755342187967,0.33580013,4411.8,4411.7,1.8978]
[1755342188561,0.11588254,4411.8,4411.7,1.8978]
[1755342188762,0.8777,4412.0,4411.9,1.8978]
[1755342189063,3.2078,4412.9,4412.8,0.7966]
[1755342189266,3.2078,4412.9,4412.8,22.6198]
[1755342189970,5.1423,4413.4,4413.3,1.8978]
[1755342192266,3.9689,4413.4,4413.3,1.8978]
[1755342192465,5.1423,4413.4,4413.3,1.8978]
[1755342192661,1.9345,4413.4,4413.3,1.8978]
[1755342195872,4.3812,4413.9,4413.4,1.1012]
[1755342196063,5.1423,4413.9,4413.8,0.2015]
[1755342196265,5.76764387,4413.9,4413.6,0.2869]
[1755342196465,1.1734,4413.8,4413.6,0.2869]
[1755342196668,1.0568,4413.7,4413.6,0.4884]
[1755342196974,1.9345,4413.7,4413.6,0.2015]
[1755342197177,2.55981376,4413.7,4413.6,0.2015]
[1755342198070,2.55981376,4413.7,4413.0,3.2078]
[1755342198371,0.7611,4413.1,4413.0,5.1056]
[1755342198671,1.9158,4413.1,4413.0,5.1056]
[1755342199569,3.2078,4413.9,4413.0,5.1056]
[1755342199570,1.9154,4413.8,4413.7,0.5074]
[1755342199774,2.54073338,4413.8,4413.3,1.0958]
[1755342199973,3.2078,4413.9,4413.6,1.8565]
[1755342199974,2.54073338,4413.7,4413.6,1.8565]
[1755342200375,0.4562,4413.7,4413.6,1.8565]
[1755342200567,1.9154,4413.7,4413.6,0.5074]
[1755342200770,1.9154,4413.7,4411.6,1.13256]
[1755342200771,1.9154,4413.0,4412.9,3.2078]
[1755342200969,1.9154,4413.0,4411.3,2.8462552]
[1755342200970,1.69598029,4413.0,4412.5,20.76]
[1755342201171,1.9154,4412.6,4412.5,22.6165]
[1755342201475,0.11228558,4412.6,4412.5,22.6165]
[1755342201974,0.8767,4413.3,4412.5,21.5207]
[1755342202279,2.02765889,4413.2,4413.1,3.9685]
[1755342202476,2.02765889,4413.2,4413.1,24.7425]
[1755342202679,2.02765889,4413.2,4413.1,25.8383]
[1755342202972,2.02765889,4413.2,4413.1,3.2078]
[1755342203275,2.02765889,4413.2,4412.6,22.6465]
[1755342203276,1.9154,4412.7,4412.6,22.6465]
[1755342203477,2.02765889,4412.7,4412.6,22.6465]
[1755342203973,0.11225889,4412.7,4412.6,22.6465]
[1755342204171,2.02765889,4412.7,4412.6,22.6465]
[1755342204677,2.02765889,4412.7,4412.6,1.8565]
[1755342204877,2.02765889,4412.7,4412.6,22.6485]
[1755342205272,2.02765889,4412.7,4412.6,22.6505]
[1755342205575,0.11225889,4412.7,4412.6,22.6505]
[1755342206080,1.64585889,4412.7,4412.6,22.6505]
[1755342206376,2.02765889,4412.7,4412.6,22.6505]
[1755342206774,1.6374,4412.6,4412.5,4.764]
[1755342206974,2.02765889,4412.6,4412.5,25.8773]
[1755342207178,0.11225889,4412.6,4412.5,25.8773]
[1755342207371,3.2078,4413.6,4412.5,24.7815]
[1755342207578,2.02642258,4413.5,4413.4,1.8565]
[1755342207777,2.02642258,4413.5,4413.4,22.6925]
[1755342207977,0.11102258,4413.5,4413.4,22.6925]
[1755342208283,2.02642258,4413.5,4413.4,22.6925]
[1755342211482,2.02642258,4413.5,4413.4,0.5074]
[1755342211673,2.02642258,4413.5,4413.4,21.3424]
[1755342212381,2.02642258,4413.5,4413.4,22.6915]
[1755342213382,2.02642258,4413.5,4413.4,20.835]
[1755342213573,2.02642258,4413.5,4413.4,22.6915]
[1755342213979,2.02642258,4413.5,4413.4,21.3424]
[1755342214480,0.11102258,4413.5,4413.4,22.6915]
[1755342214984,2.02642258,4413.5,4413.4,22.6915]
[1755342215281,1.9154,4413.5,4413.4,22.6915]
[1755342215579,2.02641856,4413.5,4413.4,22.6915]
[1755342216179,0.87171856,4413.5,4413.4,22.6915]
[1755342216978,2.02641856,4413.5,4413.4,22.6915]
[1755342221483,0.87171856,4413.5,4413.2,3.2078]
[1755342221787,2.02641856,4413.4,4413.3,20.811]
[1755342221977,2.02641856,4413.4,4413.3,20.9939]
[1755342222183,0.37461856,4413.4,4413.3,22.6675]
[1755342222377,0.11101856,4413.4,4413.3,22.6675]
[1755342222576,0.11101856,4413.5,4413.3,22.6675]
[1755342222781,0.11101856,4413.4,4413.3,22.6675]
[1755342222977,0.11101856,4413.8,4413.3,22.6675]
[1755342223187,0.30899012,4413.7,4413.6,0.7607]
[1755342223382,0.30899012,4413.7,4413.6,22.6665]
[1755342223591,0.11101856,4413.7,4413.6,22.6665]
[1755342223884,1.53151856,4413.8,4413.7,1.8565]
[1755342224087,1.73164382,4413.8,4413.7,1.8565]
[1755342224483,2.22654382,4413.8,4413.7,1.8565]
[1755342225485,2.22654382,4413.8,4413.6,20.81]
[1755342225696,0.7607,4413.2,4413.1,4.811]
[1755342225887,2.02657554,4413.2,4413.1,25.8673]
[1755342226087,0.11117554,4413.2,4413.1,25.8673]
[1755342226487,0.11117554,4413.2,4413.1,3.2078]
[1755342226794,2.02657593,4413.2,4413.1,25.8653]
[1755342227093,0.11117593,4413.2,4413.1,25.8653]
[1755342227594,2.02657593,4413.2,4413.1,25.8653]
[1755342227791,0.87187593,4413.2,4413.1,25.8653]
[1755342227993,2.02657593,4413.2,4413.1,25.8653]
[1755342229492,2.02657593,4413.2,4413.1,24.0088]
[1755342229789,2.02657593,4413.2,4412.8,1.0831]
[1755342229995,0.4309,4413.0,4412.9,20.988]
[1755342230289,2.00467593,4413.0,4412.9,20.988]
[1755342230792,2.00467593,4413.0,4412.9,22.3934]
[1755342231294,2.00467593,4413.0,4412.9,22.644]
[1755342233000,0.11117593,4413.0,4412.9,22.644]
[1755342233183,1.1576,4413.2,4412.9,22.644]
[1755342233387,1.8935,4413.0,4412.9,20.799]
[1755342233696,2.00467593,4413.0,4412.9,20.988]
[1755342233897,2.00467593,4413.0,4412.9,22.3934]
[1755342234289,0.7359,4412.6,4412.5,5.0528]
[1755342234493,1.8935,4412.6,4412.5,25.8638]
[1755342235393,2.00478182,4412.6,4412.5,25.8638]
[1755342236897,1.73278182,4412.6,4412.5,25.8638]
[1755342237194,0.84718182,4412.6,4412.5,24.5301]
[1755342237396,2.00478182,4412.6,4412.5,25.8638]
[1755342237598,1.8935,4412.6,4412.5,25.8638]
[1755342238494,2.00481225,4412.6,4412.5,25.8638]
[1755342238694,2.00481225,4412.6,4412.5,25.6132]
[1755342238889,2.00481225,4412.6,4412.5,25.8638]
[1755342239096,2.00481225,4412.6,4412.5,3.2078]
[1755342239297,2.0048139,4412.6,4412.5,25.8608]
[1755342239498,0.1113139,4412.6,4412.5,25.8608]
[1755342240301,2.0048139,4412.6,4412.5,5.0528]
[1755342240496,2.0048139,4412.6,4412.5,3.6685]
[1755342240702,2.0048139,4412.6,4412.5,24.1988]
[1755342241000,2.0048139,4412.6,4412.5,24.0098]
[1755342241501,2.22274933,4412.6,4412.5,25.8548]
[1755342242793,1.55544933,4412.6,4412.5,25.8548]
[1755342242995,2.22274933,4412.6,4412.5,25.8548]
[1755342243195,2.0048139,4412.6,4412.5,25.8548]
[1755342243396,0.1113139,4412.6,4412.5,25.8548]
[1755342245300,0.272,4413.3,4412.6,0.45293]
[1755342245500,0.8856,4413.4,4413.3,0.9718]
[1755342245803,0.272,4413.7,4413.3,21.5599]
[1755342245997,2.11126515,4413.6,4413.5,0.7619]
[1755342246203,2.11126515,4413.6,4413.5,22.5387]
[1755342250107,0.46746515,4413.6,4413.5,22.5387]
[1755342250406,1.35306515,4413.6,4413.5,22.5387]
[1755342250606,0.46746515,4413.6,4413.5,25.7465]
[1755342250904,0.2497,4413.6,4413.5,25.7465]
[1755342254111,0.645,4413.6,4413.5,25.7465]
[1755342254404,1.5885,4413.6,4413.5,25.7465]
[1755342254610,1.8935,4413.6,4413.5,25.7465]
[1755342255206,0.7359,4413.7,4413.6,1.7337]
[1755342255513,1.8935,4413.7,4413.6,1.7337]
[1755342256307,1.8935,4413.7,4413.5,20.805]
[1755342256308,0.95843399,4413.7,4413.5,20.805]
[1755342256519,1.8935,4413.6,4413.5,24.0128]
[1755342256915,1.8935,4413.6,4413.5,24.2018]
[1755342257503,2.00111143,4413.6,4413.5,24.2018]
[1755342258610,1.06603194,4413.6,4413.5,20.776]
[1755342259216,2.18083194,4413.6,4413.5,20.776]
[1755342260012,1.858,4413.1,4413.0,3.9234]
[1755342260318,1.858,4413.1,4413.0,25.6727]
[1755342261214,1.858,4413.1,4413.0,24.1649]
[1755342261515,2.18820565,4413.1,4413.0,24.1649]
[1755342261719,2.18820565,4413.1,4413.0,25.124]
[1755342261914,2.18820565,4413.1,4413.0,25.4276]
[1755342262517,1.96563865,4413.1,4413.0,25.6727]
[1755342262716,0.10763865,4413.1,4413.0,25.6727]
[1755342262922,1.1148,4413.6,4413.0,25.6727]
[1755342263220,0.33016456,4413.5,4413.4,1.6959]
[1755342263410,0.33016456,4413.5,4413.4,22.4579]
[1755342264614,0.10762145,4413.5,4413.4,22.4579]
[1755342266921,1.22242145,4413.5,4413.4,22.4579]
[1755342267120,1.96562145,4413.5,4413.4,22.4579]
[1755342267714,1.96562145,4413.5,4413.4,22.2028]
[1755342268222,1.96562145,4413.5,4413.4,22.4479]
[1755342268523,0.35092145,4413.5,4413.4,22.4479]
[1755342268722,0.10762145,4413.5,4413.4,22.4479]
[1755342268921,0.10658227,4413.5,4413.4,22.4479]
[1755342270019,1.858,4413.8,4413.7,0.9607]
[1755342270223,2.18714285,4413.8,4413.7,22.4439]
[1755342275031,2.18714285,4413.8,4413.7,20.9361]
[1755342275230,2.18714285,4413.8,4413.7,20.748]
[1755342276126,0.7432,4413.6,4413.5,3.2078]
[1755342276324,2.18714285,4413.6,4413.5,23.9358]
[1755342277427,2.18714285,4413.6,4413.5,20.728]
[1755342278227,1.07234285,4413.6,4413.5,20.725]
[1755342278428,2.18714285,4413.6,4413.5,20.9131]
[1755342278824,2.18714285,4413.6,4413.5,22.4209]
[1755342279925,0.57244285,4413.6,4413.5,22.4209]
[1755342281434,0.32914285,4413.6,4413.5,22.4209]
[1755342282622,1.49094285,4413.6,4413.5,22.4209]
[1755342282826,1.87624285,4413.6,4413.5,22.4209]
[1755342283428,1.65368719,4413.6,4413.5,22.4209]
[1755342283828,0.34988719,4413.6,4413.5,22.4209]
[1755342284433,0.10658719,4413.6,4413.5,22.4209]
[1755342284823,0.4513,4413.9,4413.6,0.4599]
[1755342285028,1.1945,4413.9,4413.8,0.7368]
[1755342285228,1.8014578,4413.9,4413.8,1.1967]
[1755342285427,1.8014578,4413.9,4413.8,1.6961]
[1755342285626,2.1867578,4413.9,4413.8,1.6961]
[1755342286230,0.3287578,4413.9,4413.8,1.6961]
[1755342286433,0.3853,4414.4,4413.8,1.6961]
[1755342286631,3.2078,4414.8,4414.2,4.9039]
[1755342286632,2.18669442,4414.3,4414.2,4.9039]
[1755342286935,1.52319442,4414.3,4414.2,25.6149]
[1755342287233,2.18669442,4414.3,4414.2,25.6149]
[1755342287433,0.57199442,4414.3,4414.2,25.6149]
[1755342287635,0.10668543,4414.3,4414.2,25.6149]
[1755342288229,1.1148,4414.7,4414.2,25.6149]
[1755342288434,0.8176,4414.4,4414.3,1.6961]
[1755342288637,1.3909139,4414.4,4414.3,1.6961]
[1755342289431,0.1068139,4414.4,4414.3,1.6961]
[1755342289836,1.6481139,4414.4,4414.3,1.6961]
[1755342290035,1.9445139,4414.4,4414.3,1.6961]
[1755342290236,1.8377,4414.4,4414.3,1.6961]
[1755342291334,1.94444176,4414.4,4414.3,21.2007]
[1755342291637,1.94444176,4414.4,4414.2,3.2078]
[1755342291638,1.8377,4414.3,4414.2,3.2078]
[1755342291940,2.16618071,4414.3,4414.2,23.9168]
[1755342293233,2.16618071,4414.3,4414.2,20.709]
[1755342294336,2.16618071,4414.3,4413.9,0.9826]
[1755342294537,0.7244,4413.7,4413.6,3.9248]
[1755342294736,1.8377,4413.7,4413.6,24.6338]
[1755342295134,1.8377,4413.7,4413.6,25.6164]
[1755342295442,1.8377,4413.7,4413.6,23.9168]
[1755342295830,1.8377,4413.7,4413.6,25.1516]
[1755342296034,1.8377,4413.7,4413.6,25.376]
[1755342296941,1.8377,4413.7,4413.6,23.9168]
[1755342297143,2.1682552,4413.7,4413.6,23.9168]
[1755342297445,2.1682552,4413.7,4413.6,24.6767]
[1755342297734,0.3305552,4413.7,4413.6,25.376]
[1755342297940,2.1682552,4413.7,4413.6,25.6164]
[1755342298538,0.3305552,4413.7,4413.6,25.6164]
[1755342298741,1.65002283,4413.7,4413.6,25.6164]
[1755342298941,1.94642283,4413.7,4413.6,25.6164]
[1755342299538,1.94641727,4413.7,4413.6,25.6164]
[1755342301243,1.94641727,4413.7,4413.6,4.9074]
[1755342301540,0.10871727,4413.7,4413.6,25.6164]
[1755342301732,1.4534,4414.5,4414.4,0.4766]
[1755342301937,1.78388892,4414.5,4414.4,22.1682]
[1755342302537,2.16818892,4414.5,4414.4,22.1682]
[1755342302743,2.16818892,4414.5,4414.4,22.4086]
[1755342305441,2.16818892,4414.5,4414.4,21.1856]
[1755342305644,0.7244,4414.3,4413.7,3.966]
[1755342305945,1.8377,4413.9,4413.8,22.1682]